[Event "Titled Tuesday Blitz February 22 Early 2022"]
[White "Ambartsumova, Karina"]
[Black "Shtyka, Sergey"]
[WhiteFideId "4166299"]
[BlackFideId "4138465"]
[WhiteElo "2262"]
[BlackElo "2014"]
[Result "1-0"]
[Round "10"]
[TimeControl "180+1"]
[Date "2022.02.22"]
[WhiteClock "0:01:20"]
[BlackClock "0:00:52"]

1. c4 {[%clk 0:02:56]}  c5 {[%clk 0:03:00]} 2. Nf3 {[%clk 0:02:52]}  Nc6 {[%clk 0:03:00]} 3. d4 {[%clk 0:02:52]}  cxd4 {[%clk 0:03:00]} 4. Nxd4 {[%clk 0:02:52]}  g6 {[%clk 0:03:00]} 5. Nc2 {[%clk 0:02:49]}  Bg7 {[%clk 0:03:00]} 6. e4 {[%clk 0:02:49]}  Nf6 {[%clk 0:03:00]} 7. Nc3 {[%clk 0:02:49]}  d6 {[%clk 0:03:00]} 8. Be2 {[%clk 0:02:49]}  O-O {[%clk 0:03:00]} 9. O-O {[%clk 0:02:49]}  Be6 {[%clk 0:03:00]} 10. Be3 {[%clk 0:02:47]}  Rc8 {[%clk 0:03:00]} 11. b3 {[%clk 0:02:39]}  a6 {[%clk 0:03:00]} 12. f3 {[%clk 0:02:35]}  Ng4 {[%clk 0:02:53]} 13. Qd2 {[%clk 0:01:53]}  Nxe3 {[%clk 0:02:47]} 14. Nxe3 {[%clk 0:01:45]}  Qa5 {[%clk 0:02:25]} 15. Rac1 {[%clk 0:01:44]}  b5 {[%clk 0:02:24]} 16. Rfd1 {[%clk 0:01:39]}  bxc4 {[%clk 0:02:15]} 17. Bxc4 {[%clk 0:01:36]}  Bxc4 {[%clk 0:02:08]} 18. Nxc4 {[%clk 0:01:37]}  Qc5+ {[%clk 0:02:06]} 19. Kh1 {[%clk 0:01:37]}  Qh5 {[%clk 0:01:44]} 20. Nd5 {[%clk 0:01:28]}  Bh6 {[%clk 0:01:14]} 21. f4 {[%clk 0:01:28]}  Rce8 {[%clk 0:00:54]} 22. Nxd6 {[%clk 0:01:20]}  exd6 {[%clk 0:00:52]} 23. Nf6+ {[%clk 0:01:20]} 1-0


[Site "https://www.chess.com"]

[Event "Titled Tuesday Blitz February 22 Early 2022"]
[White "Ashiev, Eduard"]
[Black "Martinez, Shawn"]
[WhiteFideId "4130090"]
[BlackFideId "2039770"]
[WhiteElo "2004"]
[BlackElo "2174"]
[Result "1-0"]
[Round "10"]
[TimeControl "180+1"]
[Date "2022.02.22"]
[WhiteClock "0:00:20"]
[BlackClock "0:00:05"]

1. d4 {[%clk 0:02:52]}  Nf6 {[%clk 0:02:51]} 2. Nf3 {[%clk 0:02:43]}  g6 {[%clk 0:02:50]} 3. c4 {[%clk 0:02:43]}  Bg7 {[%clk 0:02:49]} 4. Nc3 {[%clk 0:02:43]}  d6 {[%clk 0:02:49]} 5. e4 {[%clk 0:02:43]}  O-O {[%clk 0:02:48]} 6. h3 {[%clk 0:02:44]}  Nc6 {[%clk 0:02:33]} 7. d5 {[%clk 0:02:43]}  Ne5 {[%clk 0:02:26]} 8. Nxe5 {[%clk 0:02:43]}  dxe5 {[%clk 0:02:22]} 9. Be2 {[%clk 0:02:43]}  e6 {[%clk 0:02:18]} 10. Be3 {[%clk 0:02:42]}  exd5 {[%clk 0:02:04]} 11. cxd5 {[%clk 0:02:41]}  c6 {[%clk 0:01:53]} 12. dxc6 {[%clk 0:02:40]}  bxc6 {[%clk 0:01:47]} 13. Qxd8 {[%clk 0:02:40]}  Rxd8 {[%clk 0:01:36]} 14. O-O {[%clk 0:02:38]}  Be6 {[%clk 0:01:27]} 15. Rfd1 {[%clk 0:02:38]}  Nd7 {[%clk 0:01:23]} 16. Na4 {[%clk 0:02:34]}  f5 {[%clk 0:01:15]} 17. f3 {[%clk 0:02:03]}  Nf6 {[%clk 0:01:10]} 18. Nc5 {[%clk 0:01:57]}  Bf7 {[%clk 0:01:01]} 19. b3 {[%clk 0:01:51]}  Bf8 {[%clk 0:00:59]} 20. Bd3 {[%clk 0:01:20]}  f4 {[%clk 0:00:38]} 21. Bf2 {[%clk 0:01:19]}  g5 {[%clk 0:00:38]} 22. Be2 {[%clk 0:01:09]}  h5 {[%clk 0:00:35]} 23. Kf1 {[%clk 0:01:09]}  Be7 {[%clk 0:00:26]} 24. Rac1 {[%clk 0:01:07]}  Rxd1+ {[%clk 0:00:25]} 25. Rxd1 {[%clk 0:01:06]}  Rd8 {[%clk 0:00:25]} 26. Rxd8+ {[%clk 0:01:06]}  Bxd8 {[%clk 0:00:26]} 27. Nd3 {[%clk 0:00:56]}  Bc7 {[%clk 0:00:21]} 28. Bxa7 {[%clk 0:00:55]}  Kf8 {[%clk 0:00:20]} 29. Bc5+ {[%clk 0:00:53]}  Ke8 {[%clk 0:00:16]} 30. Nb4 {[%clk 0:00:49]}  Kd7 {[%clk 0:00:16]} 31. Bc4 {[%clk 0:00:41]}  Bxc4+ {[%clk 0:00:14]} 32. bxc4 {[%clk 0:00:42]}  g4 {[%clk 0:00:15]} 33. hxg4 {[%clk 0:00:41]}  hxg4 {[%clk 0:00:14]} 34. Ke2 {[%clk 0:00:41]}  gxf3+ {[%clk 0:00:14]} 35. gxf3 {[%clk 0:00:40]}  Nh5 {[%clk 0:00:14]} 36. a4 {[%clk 0:00:36]}  Ng3+ {[%clk 0:00:14]} 37. Kd3 {[%clk 0:00:36]}  Nf1 {[%clk 0:00:11]} 38. Bf2 {[%clk 0:00:34]}  Ba5 {[%clk 0:00:09]} 39. Na2 {[%clk 0:00:29]}  Kc7 {[%clk 0:00:07]} 40. Nc1 {[%clk 0:00:28]}  Kb7 {[%clk 0:00:06]} 41. Nb3 {[%clk 0:00:28]}  Bb4 {[%clk 0:00:05]} 42. Nc5+ {[%clk 0:00:20]}  Bxc5 {[%clk 0:00:04]} 43. Bxc5 {[%clk 0:00:20]}  Ka6 {[%clk 0:00:05]} 44. Bd6 {[%clk 0:00:20]} 1-0


[Site "https://www.chess.com"]

[Event "Titled Tuesday Blitz February 22 Early 2022"]
[White "Assaubayeva, Bibisara"]
[Black "Janaszak, Dawid"]
[WhiteFideId "13708694"]
[BlackFideId "1119206"]
[WhiteElo "2404"]
[BlackElo "2199"]
[Result "1-0"]
[Round "10"]
[TimeControl "180+1"]
[Date "2022.02.22"]
[WhiteClock "0:00:08"]
[BlackClock "0:00:14"]

1. d4 {[%clk 0:03:00]}  Nf6 {[%clk 0:02:59]} 2. c4 {[%clk 0:02:59]}  g6 {[%clk 0:03:00]} 3. Nc3 {[%clk 0:02:58]}  Bg7 {[%clk 0:03:00]} 4. e4 {[%clk 0:02:58]}  d6 {[%clk 0:03:01]} 5. Be2 {[%clk 0:02:58]}  O-O {[%clk 0:02:54]} 6. Be3 {[%clk 0:02:57]}  Nbd7 {[%clk 0:02:52]} 7. Nf3 {[%clk 0:02:51]}  e5 {[%clk 0:02:52]} 8. d5 {[%clk 0:02:49]}  Ng4 {[%clk 0:02:49]} 9. Bg5 {[%clk 0:02:47]}  f6 {[%clk 0:02:49]} 10. Bh4 {[%clk 0:02:40]}  h5 {[%clk 0:02:34]} 11. Bg3 {[%clk 0:02:33]}  Nh6 {[%clk 0:02:24]} 12. Nd2 {[%clk 0:02:25]}  f5 {[%clk 0:02:21]} 13. f3 {[%clk 0:02:23]}  Bf6 {[%clk 0:02:15]} 14. h4 {[%clk 0:02:10]}  a5 {[%clk 0:02:03]} 15. Qc2 {[%clk 0:02:08]}  Nc5 {[%clk 0:01:58]} 16. O-O-O {[%clk 0:02:07]}  a4 {[%clk 0:01:56]} 17. Bf2 {[%clk 0:01:58]}  b6 {[%clk 0:01:56]} 18. Be3 {[%clk 0:01:40]}  f4 {[%clk 0:01:55]} 19. Bf2 {[%clk 0:01:39]}  Bd7 {[%clk 0:01:48]} 20. Kb1 {[%clk 0:01:38]}  Nf7 {[%clk 0:01:42]} 21. g3 {[%clk 0:01:10]}  Kh7 {[%clk 0:01:36]} 22. Bf1 {[%clk 0:01:05]}  Nh6 {[%clk 0:01:31]} 23. Bh3 {[%clk 0:01:03]}  Qc8 {[%clk 0:01:28]} 24. Bxd7 {[%clk 0:01:01]}  Qxd7 {[%clk 0:01:29]} 25. gxf4 {[%clk 0:00:53]}  exf4 {[%clk 0:01:26]} 26. Ne2 {[%clk 0:00:54]}  Be5 {[%clk 0:01:23]} 27. Bd4 {[%clk 0:00:50]}  Nf7 {[%clk 0:01:22]} 28. Rdg1 {[%clk 0:00:45]}  Rg8 {[%clk 0:01:20]} 29. Bxe5 {[%clk 0:00:40]}  dxe5 {[%clk 0:01:21]} 30. Nc3 {[%clk 0:00:29]}  Nd6 {[%clk 0:01:19]} 31. Rg2 {[%clk 0:00:24]}  b5 {[%clk 0:01:19]} 32. cxb5 {[%clk 0:00:23]}  Nxb5 {[%clk 0:01:19]} 33. Nxb5 {[%clk 0:00:22]}  Qxb5 {[%clk 0:01:20]} 34. Nc4 {[%clk 0:00:22]}  Rae8 {[%clk 0:01:11]} 35. Rc1 {[%clk 0:00:21]}  Na6 {[%clk 0:01:08]} 36. Na3 {[%clk 0:00:20]}  Qb8 {[%clk 0:01:02]} 37. Qxa4 {[%clk 0:00:19]}  Qb7 {[%clk 0:00:51]} 38. Qc6 {[%clk 0:00:19]}  Rb8 {[%clk 0:00:37]} 39. Qxb7 {[%clk 0:00:18]}  Rxb7 {[%clk 0:00:38]} 40. Nc4 {[%clk 0:00:17]}  Rd8 {[%clk 0:00:34]} 41. Nxe5 {[%clk 0:00:16]}  Rd6 {[%clk 0:00:33]} 42. Rc6 {[%clk 0:00:16]}  Nb4 {[%clk 0:00:32]} 43. Rxd6 {[%clk 0:00:15]}  cxd6 {[%clk 0:00:33]} 44. Nxg6 {[%clk 0:00:16]}  Rc7 {[%clk 0:00:30]} 45. Nxf4 {[%clk 0:00:14]}  Rf7 {[%clk 0:00:31]} 46. Nxh5 {[%clk 0:00:13]}  Rxf3 {[%clk 0:00:31]} 47. Rg1 {[%clk 0:00:12]}  Kh6 {[%clk 0:00:29]} 48. a3 {[%clk 0:00:11]}  Nd3 {[%clk 0:00:28]} 49. Ng3 {[%clk 0:00:11]}  Rf2 {[%clk 0:00:25]} 50. Nf5+ {[%clk 0:00:11]}  Kh7 {[%clk 0:00:24]} 51. Rg7+ {[%clk 0:00:10]}  Kh8 {[%clk 0:00:24]} 52. Rb7 {[%clk 0:00:11]}  Rf1+ {[%clk 0:00:22]} 53. Kc2 {[%clk 0:00:10]}  Nc5 {[%clk 0:00:22]} 54. Rb8+ {[%clk 0:00:10]}  Kh7 {[%clk 0:00:22]} 55. Nxd6 {[%clk 0:00:11]}  Rf2+ {[%clk 0:00:21]} 56. Kc3 {[%clk 0:00:11]}  Rf3+ {[%clk 0:00:20]} 57. Kd4 {[%clk 0:00:10]}  Na4 {[%clk 0:00:19]} 58. e5 {[%clk 0:00:09]}  Rf4+ {[%clk 0:00:18]} 59. Ke3 {[%clk 0:00:09]}  Rxh4 {[%clk 0:00:18]} 60. e6 {[%clk 0:00:09]}  Rh1 {[%clk 0:00:16]} 61. Kf2 {[%clk 0:00:08]}  Rd1 {[%clk 0:00:14]} 62. e7 {[%clk 0:00:08]} 1-0


[Site "https://www.chess.com"]

[Event "Titled Tuesday Blitz February 22 Early 2022"]
[White "Batsiashvili, Nino"]
[Black "Leiva, Gianmarco"]
[WhiteFideId "13602993"]
[BlackFideId "3804399"]
[WhiteElo "2230"]
[BlackElo "2328"]
[Result "1/2-1/2"]
[Round "10"]
[TimeControl "180+1"]
[Date "2022.02.22"]
[WhiteClock "0:00:12"]
[BlackClock "0:00:04"]

1. d4 {[%clk 0:03:00]}  Nf6 {[%clk 0:02:28]} 2. c4 {[%clk 0:02:58]}  e6 {[%clk 0:02:28]} 3. Nc3 {[%clk 0:02:58]}  d5 {[%clk 0:02:29]} 4. Nf3 {[%clk 0:02:59]}  c6 {[%clk 0:02:29]} 5. g3 {[%clk 0:02:57]}  dxc4 {[%clk 0:02:24]} 6. a4 {[%clk 0:02:57]}  Bb4 {[%clk 0:02:24]} 7. Bg2 {[%clk 0:02:57]}  c5 {[%clk 0:02:22]} 8. O-O {[%clk 0:02:56]}  Nc6 {[%clk 0:02:22]} 9. dxc5 {[%clk 0:02:51]}  Bxc3 {[%clk 0:02:12]} 10. Qxd8+ {[%clk 0:02:48]}  Nxd8 {[%clk 0:02:12]} 11. bxc3 {[%clk 0:02:49]}  Ne4 {[%clk 0:01:54]} 12. Ne5 {[%clk 0:02:45]}  Nxc3 {[%clk 0:01:50]} 13. Re1 {[%clk 0:02:29]}  f6 {[%clk 0:01:45]} 14. Nxc4 {[%clk 0:02:29]}  Bd7 {[%clk 0:01:44]} 15. Nd6+ {[%clk 0:02:24]}  Ke7 {[%clk 0:01:43]} 16. Nxb7 {[%clk 0:02:24]}  Rc8 {[%clk 0:01:36]} 17. Ba3 {[%clk 0:02:07]}  Bc6 {[%clk 0:01:37]} 18. Nd6 {[%clk 0:02:05]}  Rb8 {[%clk 0:01:30]} 19. e4 {[%clk 0:01:53]}  e5 {[%clk 0:01:05]} 20. Re3 {[%clk 0:01:45]}  Nxa4 {[%clk 0:00:38]} 21. Bf1 {[%clk 0:01:29]}  Ne6 {[%clk 0:00:37]} 22. Bc4 {[%clk 0:01:28]}  Nd4 {[%clk 0:00:36]} 23. Nf5+ {[%clk 0:01:23]}  Nxf5 {[%clk 0:00:36]} 24. exf5 {[%clk 0:01:24]}  Rhd8 {[%clk 0:00:33]} 25. Bb3 {[%clk 0:00:41]}  Kd7 {[%clk 0:00:09]} 26. Rd1+ {[%clk 0:00:37]}  Kc7 {[%clk 0:00:09]} 27. Rd6 {[%clk 0:00:37]}  Rxd6 {[%clk 0:00:09]} 28. cxd6+ {[%clk 0:00:37]}  Kd8 {[%clk 0:00:09]} 29. f3 {[%clk 0:00:34]}  h5 {[%clk 0:00:06]} 30. Kf2 {[%clk 0:00:33]}  Bd7 {[%clk 0:00:07]} 31. Rd3 {[%clk 0:00:28]}  Bxf5 {[%clk 0:00:02]} 32. Re3 {[%clk 0:00:28]}  Bd7 {[%clk 0:00:03]} 33. h4 {[%clk 0:00:25]}  Rb7 {[%clk 0:00:02]} 34. f4 {[%clk 0:00:22]}  exf4 {[%clk 0:00:02]} 35. gxf4 {[%clk 0:00:23]}  Rb6 {[%clk 0:00:03]} 36. Bd1 {[%clk 0:00:21]}  Ra6 {[%clk 0:00:02]} 37. Bxh5 {[%clk 0:00:21]}  Nb6 {[%clk 0:00:02]} 38. Bc5 {[%clk 0:00:17]}  Ra2+ {[%clk 0:00:02]} 39. Kg3 {[%clk 0:00:17]}  Nd5 {[%clk 0:00:02]} 40. Re7 {[%clk 0:00:16]}  Rc2 {[%clk 0:00:01]} 41. Bxa7 {[%clk 0:00:13]}  Rc3+ {[%clk 0:00:01]} 42. Kf2 {[%clk 0:00:12]}  Nxe7 {[%clk 0:00:02]} 43. dxe7+ {[%clk 0:00:12]}  Kxe7 {[%clk 0:00:03]} 44. Bd4 {[%clk 0:00:13]}  Rc2+ {[%clk 0:00:03]} 45. Kg3 {[%clk 0:00:13]}  Be8 {[%clk 0:00:03]} 46. Bxe8 {[%clk 0:00:12]}  Kxe8 {[%clk 0:00:04]} 47. Kg4 {[%clk 0:00:13]}  Kf7 {[%clk 0:00:04]} 48. h5 {[%clk 0:00:13]}  Rc4 {[%clk 0:00:05]} 49. Bf2 {[%clk 0:00:13]}  Ra4 {[%clk 0:00:06]} 50. Bg3 {[%clk 0:00:13]}  Ra2 {[%clk 0:00:05]} 51. Be1 {[%clk 0:00:13]}  Ra1 {[%clk 0:00:05]} 52. Bc3 {[%clk 0:00:13]}  Rg1+ {[%clk 0:00:05]} 53. Kf5 {[%clk 0:00:12]}  Rg3 {[%clk 0:00:06]} 54. Bd4 {[%clk 0:00:12]}  Rd3 {[%clk 0:00:06]} 55. Bf2 {[%clk 0:00:11]}  Rf3 {[%clk 0:00:06]} 56. Bd4 {[%clk 0:00:11]}  Rb3 {[%clk 0:00:07]} 57. Bf2 {[%clk 0:00:11]}  Rb5+ {[%clk 0:00:07]} 58. Kg4 {[%clk 0:00:11]}  Ke6 {[%clk 0:00:07]} 59. Bd4 {[%clk 0:00:10]}  Kd5 {[%clk 0:00:08]} 60. h6 {[%clk 0:00:07]}  Kxd4 {[%clk 0:00:06]} 61. hxg7 {[%clk 0:00:07]}  Rb8 {[%clk 0:00:05]} 62. Kf5 {[%clk 0:00:08]}  Ke3 {[%clk 0:00:04]} 63. Kxf6 {[%clk 0:00:09]}  Kxf4 {[%clk 0:00:04]} 64. Kf7 {[%clk 0:00:09]}  Rb7+ {[%clk 0:00:04]} 65. Kf6 {[%clk 0:00:10]}  Rb8 {[%clk 0:00:04]} 66. Kf7 {[%clk 0:00:10]}  Kf5 {[%clk 0:00:03]} 67. g8=Q {[%clk 0:00:10]}  Rb7+ {[%clk 0:00:02]} 68. Kf8 {[%clk 0:00:11]}  Rb8+ {[%clk 0:00:03]} 69. Kf7 {[%clk 0:00:11]}  Rb7+ {[%clk 0:00:03]} 70. Kf8 {[%clk 0:00:11]}  Rb8+ {[%clk 0:00:04]} 71. Kf7 {[%clk 0:00:12]} 1/2-1/2


[Site "https://www.chess.com"]

[Event "Titled Tuesday Blitz February 22 Early 2022"]
[White "Berdychevskaya, Natasha"]
[Black "Matveeva, Olga"]
[WhiteFideId "4159322"]
[BlackFideId "24107018"]
[WhiteElo "1780"]
[BlackElo "2083"]
[Result "1-0"]
[Round "10"]
[TimeControl "180+1"]
[Date "2022.02.22"]
[WhiteClock "0:00:09"]
[BlackClock "0:00:01"]

1. d4 {[%clk 0:02:58]}  Nf6 {[%clk 0:02:59]} 2. Bf4 {[%clk 0:02:56]}  d5 {[%clk 0:02:55]} 3. e3 {[%clk 0:02:56]}  c5 {[%clk 0:02:42]} 4. c3 {[%clk 0:02:54]}  Nc6 {[%clk 0:02:40]} 5. Nd2 {[%clk 0:02:46]}  e6 {[%clk 0:02:32]} 6. Ngf3 {[%clk 0:02:40]}  Bd6 {[%clk 0:02:31]} 7. Bg3 {[%clk 0:02:39]}  O-O {[%clk 0:02:29]} 8. Bd3 {[%clk 0:02:36]}  b6 {[%clk 0:02:26]} 9. O-O {[%clk 0:02:25]}  Bb7 {[%clk 0:02:19]} 10. Ne5 {[%clk 0:02:21]}  Qc7 {[%clk 0:01:58]} 11. f4 {[%clk 0:02:15]}  Nd7 {[%clk 0:01:42]} 12. Bh4 {[%clk 0:02:04]}  f6 {[%clk 0:01:36]} 13. Qh5 {[%clk 0:01:57]}  f5 {[%clk 0:01:21]} 14. g4 {[%clk 0:01:49]}  cxd4 {[%clk 0:01:08]} 15. exd4 {[%clk 0:01:48]}  Ndxe5 {[%clk 0:00:58]} 16. fxe5 {[%clk 0:01:45]}  Be7 {[%clk 0:00:58]} 17. gxf5 {[%clk 0:01:40]}  Bxh4 {[%clk 0:00:56]} 18. Qxh4 {[%clk 0:01:35]}  exf5 {[%clk 0:00:52]} 19. Bxf5 {[%clk 0:01:33]}  g6 {[%clk 0:00:49]} 20. Be6+ {[%clk 0:01:26]}  Kg7 {[%clk 0:00:48]} 21. Rf6 {[%clk 0:01:21]}  Nxe5 {[%clk 0:00:44]} 22. dxe5 {[%clk 0:01:12]}  Qxe5 {[%clk 0:00:43]} 23. Rxf8 {[%clk 0:01:08]}  Rxf8 {[%clk 0:00:44]} 24. Re1 {[%clk 0:00:50]}  Qd6 {[%clk 0:00:36]} 25. Qd4+ {[%clk 0:00:46]}  Kh6 {[%clk 0:00:25]} 26. Bh3 {[%clk 0:00:39]}  Rf4 {[%clk 0:00:22]} 27. Qe3 {[%clk 0:00:33]}  d4 {[%clk 0:00:19]} 28. cxd4 {[%clk 0:00:30]}  g5 {[%clk 0:00:18]} 29. Qe6+ {[%clk 0:00:25]}  Qxe6 {[%clk 0:00:17]} 30. Rxe6+ {[%clk 0:00:26]}  Kh5 {[%clk 0:00:13]} 31. Bg2 {[%clk 0:00:25]}  Bxg2 {[%clk 0:00:13]} 32. Kxg2 {[%clk 0:00:25]}  Rxd4 {[%clk 0:00:13]} 33. Nf3 {[%clk 0:00:24]}  Rc4 {[%clk 0:00:13]} 34. Re2 {[%clk 0:00:22]}  g4 {[%clk 0:00:13]} 35. Ne5 {[%clk 0:00:22]}  Rc5 {[%clk 0:00:13]} 36. Nd3 {[%clk 0:00:20]}  Rc4 {[%clk 0:00:12]} 37. Kg3 {[%clk 0:00:17]}  Kg5 {[%clk 0:00:12]} 38. Re5+ {[%clk 0:00:14]}  Kf6 {[%clk 0:00:12]} 39. Re3 {[%clk 0:00:13]}  h5 {[%clk 0:00:12]} 40. Re2 {[%clk 0:00:12]}  Kg5 {[%clk 0:00:12]} 41. a3 {[%clk 0:00:10]}  h4+ {[%clk 0:00:11]} 42. Kg2 {[%clk 0:00:11]}  Rd4 {[%clk 0:00:12]} 43. Nf2 {[%clk 0:00:09]}  Kf4 {[%clk 0:00:10]} 44. Rc2 {[%clk 0:00:07]}  h3+ {[%clk 0:00:10]} 45. Kf1 {[%clk 0:00:07]}  Kf3 {[%clk 0:00:09]} 46. Rc3+ {[%clk 0:00:07]}  Kf4 {[%clk 0:00:09]} 47. Rg3 {[%clk 0:00:07]}  Kf5 {[%clk 0:00:09]} 48. Nxg4 {[%clk 0:00:06]}  Rxg4 {[%clk 0:00:08]} 49. Rxh3 {[%clk 0:00:07]}  Rf4+ {[%clk 0:00:08]} 50. Ke2 {[%clk 0:00:07]}  Rg4 {[%clk 0:00:09]} 51. Rh7 {[%clk 0:00:06]}  Rg2+ {[%clk 0:00:08]} 52. Kd3 {[%clk 0:00:06]}  Rxb2 {[%clk 0:00:08]} 53. Rxa7 {[%clk 0:00:03]}  Rxh2 {[%clk 0:00:09]} 54. Kc4 {[%clk 0:00:03]}  Rb2 {[%clk 0:00:08]} 55. Kd5 {[%clk 0:00:02]}  Kf6 {[%clk 0:00:06]} 56. Kc6 {[%clk 0:00:02]}  Ke6 {[%clk 0:00:06]} 57. Rb7 {[%clk 0:00:03]}  Ra2 {[%clk 0:00:06]} 58. Rxb6 {[%clk 0:00:03]}  Rxa3 {[%clk 0:00:06]} 59. Kc5+ {[%clk 0:00:04]}  Ke5 {[%clk 0:00:06]} 60. Kb4 {[%clk 0:00:04]}  Ra1 {[%clk 0:00:06]} 61. Rb5+ {[%clk 0:00:05]}  Kd4 {[%clk 0:00:05]} 62. Ra5 {[%clk 0:00:05]}  Rb1+ {[%clk 0:00:05]} 63. Ka3 {[%clk 0:00:04]}  Kc4 {[%clk 0:00:04]} 64. Rh5 {[%clk 0:00:03]}  Rb3+ {[%clk 0:00:02]} 65. Ka2 {[%clk 0:00:03]}  Rc3 {[%clk 0:00:02]} 66. Rh4+ {[%clk 0:00:04]}  Kc5 {[%clk 0:00:02]} 67. Rh8 {[%clk 0:00:04]}  Rc4 {[%clk 0:00:02]} 68. Kb3 {[%clk 0:00:04]}  Rd4 {[%clk 0:00:02]} 69. Ka3 {[%clk 0:00:05]}  Rd3+ {[%clk 0:00:01]} 70. Ka4 {[%clk 0:00:04]}  Rd4+ {[%clk 0:00:02]} 71. Ka5 {[%clk 0:00:04]}  Rd3 {[%clk 0:00:01]} 72. Rc8+ {[%clk 0:00:04]}  Kd4 {[%clk 0:00:01]} 73. Rc1 {[%clk 0:00:04]}  Ke3 {[%clk 0:00:01]} 74. Kb4 {[%clk 0:00:05]}  Ke2 {[%clk 0:00:02]} 75. Rc2+ {[%clk 0:00:05]}  Rd2 {[%clk 0:00:02]} 76. Rc8 {[%clk 0:00:06]}  Rd4+ {[%clk 0:00:02]} 77. Kc3 {[%clk 0:00:06]}  Rd3+ {[%clk 0:00:02]} 78. Kc4 {[%clk 0:00:05]}  Rd2 {[%clk 0:00:02]} 79. Re8+ {[%clk 0:00:06]}  Kd1 {[%clk 0:00:01]} 80. Kc3 {[%clk 0:00:06]}  Rc2+ {[%clk 0:00:01]} 81. Kb3 {[%clk 0:00:07]}  Rd2 {[%clk 0:00:01]} 82. Rf8 {[%clk 0:00:07]}  Re2 {[%clk 0:00:01]} 83. Kc4 {[%clk 0:00:07]}  Rd2 {[%clk 0:00:02]} 84. Rf1+ {[%clk 0:00:07]}  Ke2 {[%clk 0:00:02]} 85. Rh1 {[%clk 0:00:08]}  Rd6 {[%clk 0:00:01]} 86. Rh2+ {[%clk 0:00:08]}  Kf3 {[%clk 0:00:01]} 87. Rh3+ {[%clk 0:00:09]} 1-0


[Site "https://www.chess.com"]

[Event "Titled Tuesday Blitz February 22 Early 2022"]
[White "Bodnar, Nikolay"]
[Black "Jiang, Brian"]
[WhiteFideId "14106469"]
[BlackFideId "2627922"]
[WhiteElo "2296"]
[BlackElo "2393"]
[Result "1-0"]
[Round "10"]
[TimeControl "180+1"]
[Date "2022.02.22"]
[WhiteClock "0:00:28"]
[BlackClock "0:00:16"]

1. e4 {[%clk 0:03:00]}  c5 {[%clk 0:02:59]} 2. Nf3 {[%clk 0:03:01]}  Nc6 {[%clk 0:03:00]} 3. Bb5 {[%clk 0:02:59]}  e6 {[%clk 0:03:00]} 4. O-O {[%clk 0:02:59]}  Nge7 {[%clk 0:02:59]} 5. Re1 {[%clk 0:02:59]}  Nd4 {[%clk 0:02:59]} 6. Nxd4 {[%clk 0:02:55]}  cxd4 {[%clk 0:03:00]} 7. c3 {[%clk 0:02:55]}  a6 {[%clk 0:03:00]} 8. Bd3 {[%clk 0:02:55]}  Nc6 {[%clk 0:03:00]} 9. b4 {[%clk 0:02:55]}  Be7 {[%clk 0:02:53]} 10. Bb2 {[%clk 0:02:53]}  dxc3 {[%clk 0:02:46]} 11. dxc3 {[%clk 0:02:52]}  Bf6 {[%clk 0:02:46]} 12. Qe2 {[%clk 0:02:30]}  O-O {[%clk 0:02:44]} 13. a3 {[%clk 0:02:27]}  b5 {[%clk 0:02:36]} 14. c4 {[%clk 0:02:25]}  Nd4 {[%clk 0:02:34]} 15. Qd2 {[%clk 0:02:06]}  Nb3 {[%clk 0:02:33]} 16. Qe2 {[%clk 0:02:01]}  Nxa1 {[%clk 0:02:32]} 17. e5 {[%clk 0:02:02]}  Bg5 {[%clk 0:01:36]} 18. Qe4 {[%clk 0:01:46]}  g6 {[%clk 0:01:34]} 19. Qxa8 {[%clk 0:01:46]}  Nb3 {[%clk 0:01:33]} 20. cxb5 {[%clk 0:01:37]}  axb5 {[%clk 0:01:29]} 21. Nc3 {[%clk 0:01:08]}  Nd4 {[%clk 0:01:18]} 22. Ne4 {[%clk 0:01:05]}  Nf5 {[%clk 0:01:01]} 23. Nxg5 {[%clk 0:00:52]}  Qxg5 {[%clk 0:01:02]} 24. Qf3 {[%clk 0:00:52]}  Qd2 {[%clk 0:00:59]} 25. Qe2 {[%clk 0:00:47]}  Qg5 {[%clk 0:00:54]} 26. Bc1 {[%clk 0:00:44]}  Qh4 {[%clk 0:00:48]} 27. g3 {[%clk 0:00:44]}  Qd4 {[%clk 0:00:46]} 28. Bb2 {[%clk 0:00:43]}  Qd5 {[%clk 0:00:41]} 29. Be4 {[%clk 0:00:44]}  Qb3 {[%clk 0:00:40]} 30. Kg2 {[%clk 0:00:31]}  d5 {[%clk 0:00:32]} 31. exd6 {[%clk 0:00:31]}  Nxd6 {[%clk 0:00:32]} 32. Bf3 {[%clk 0:00:30]}  Qc4 {[%clk 0:00:28]} 33. Qe5 {[%clk 0:00:29]}  f6 {[%clk 0:00:24]} 34. Qxd6 {[%clk 0:00:29]}  Rf7 {[%clk 0:00:16]} 35. Rc1 {[%clk 0:00:28]}  Bd7 {[%clk 0:00:16]} 36. Rxc4 {[%clk 0:00:28]} 1-0


[Site "https://www.chess.com"]